[Event "RUS-chT Women Rapid 2019"]
[Site "Sochi"]
[Date "2019.10.18"]
[Round "3.6"]
[White "Bivol, Alina"]
[Black "Tomilova, Elena"]
[Result "0-1"]
[ECO "A15"]
[WhiteElo "2371"]
[BlackElo "2345"]
[Annotator "NA"]
[PlyCount "118"]
[EventDate "2019.10.18"]
[EventType "swiss"]
[EventCountry "RUS"]
[SourceTitle "playchess.com"]
[Source "ChessBase"]
[SourceQuality "1"]
[TimeControl "900+10"]

1. c4 {[%emt 0:00:00]} Nf6 {[%emt 0:00:00]} 2. g3 {[%emt 0:00:00]} c6 {[%emt 0:00:00]} 3. Bg2 {[%emt 0:00:08]} d5 {[%emt 0:00:01]} 4. cxd5 {[%emt 0:00:09]} cxd5 {[%emt 0:00:04]} 5. Nf3 {[%emt 0:00:02]} Nc6 {[%emt 0:00:06]} 6. d4 {[%emt 0:00:16]} Bf5 {[%emt 0:00:45]} 7. O-O {[%emt 0:00:04]} e6 {[%emt 0:00:05]} 8. Nc3 {[%emt 0:00:03]} Be7 {[%emt 0:00:31]} 9. Ne5 {[%emt 0:00:43]} O-O {[%emt 0:00:52]} 10. Nxc6 {[%emt 0:01:02]} bxc6 {[%emt 0:00:01]} 11. Na4 {[%emt 0:00:04]} Qa5 {[%emt 0:00:30]} 12. Bd2 {[%emt 0:00:54]} Qb5 {[%emt 0:00:18]} 13. Rc1 {[%emt 0:00:27]} Rfc8 {[%emt 0:00:26]} 14. Be3 {[%emt 0:02:50]} Rab8 {[%emt 0:01:08]} 15. h3 {[%emt 0:00:27]} h6 {[%emt 0:00:03]} 16. Kh2 {[%emt 0:01:02]} Nd7 {[%emt 0:00:29]} 17. g4 {[%emt 0:02:13]} Bd6+ {[%emt 0:00:43]} 18. Kh1 {[%emt 0:00:19]} Bg6 {[%emt 0:00:41]} 19. Bf3 {[%emt 0:00:49]} c5 {[%emt 0:00:24]} 20. dxc5 {[%emt 0:00:13]} Nxc5 {[%emt 0:00:05]} 21. Nxc5 {[%emt 0:00:32]} Bxc5 {[%emt 0:00:01]} 22. Bxc5 {[%emt 0:00:14]} Rxc5 {[%emt 0:00:02]} 23. b3 {[%emt 0:00:14]} Rbc8 {[%emt 0:00:14]} 24. Rxc5 {[%emt 0:01:08]} Qxc5 {[%emt 0:00:08]} 25. Qd2 {[%emt 0:00:10]} Qa3 {[%emt 0:01:32]} 26. h4 {[%emt 0:00:37]} Rc2 {[%emt 0:00:50]} 27. Qf4 {[%emt 0:00:01]} Qxa2 {[%emt 0:00:44]} 28. h5 {[%emt 0:01:11]} Be4 {[%emt 0:00:06]} 29. Bxe4 {[%emt 0:00:01]} dxe4 {[%emt 0:00:02]} 30. Rd1 {[%emt 0:00:01]} Rc8 {[%emt 0:02:34]} 31. Rd7 {[%emt 0:00:50]} Rf8 {[%emt 0:01:22]} 32. Qe3 {[%emt 0:00:18]} a5 {[%emt 0:00:21]} 33. Kg2 {[%emt 0:00:41]} Qb2 {[%emt 0:00:33]} 34. Rd4 {[%emt 0:02:02]} Rb8 {[%emt 0:00:16]} 35. Qxe4 {[%emt 0:00:17]} Qxb3 {[%emt 0:00:20]} 36. Rd7 {[%emt 0:00:14]} Qb4 {[%emt 0:00:50]} 37. Qf3 {[%emt 0:00:14]} Rf8 {[%emt 0:00:55]} 38. Rb7 {[%emt 0:00:01]} Qc5 {[%emt 0:00:08]} 39. Qe4 {[%emt 0:00:10]} Qg5 {[%emt 0:00:12]} 40. Ra7 {[%emt 0:00:07]} Rd8 {[%emt 0:00:27]} 41. Qf3 {[%emt 0:00:30]} f6 {[%emt 0:00:59]} 42. Kh3 {[%emt 0:00:11]} Rd4 {[%emt 0:00:27]} 43. Ra8+ {[%emt 0:00:11]} Kh7 {[%emt 0:00:02]} 44. e3 {[%emt 0:00:03]} Rb4 {[%emt 0:00:11]} 45. Re8 {[%emt 0:00:08]} f5 {[%emt 0:00:09]} 46. Qa8 {[%emt 0:00:30]} Qxg4+ {[%emt 0:00:06]} 47. Kh2 {[%emt 0:00:00]} Qxh5+ {[%emt 0:00:04]} 48. Kg2 {[%emt 0:00:03]} Qg4+ {[%emt 0:00:09]} 49. Kh2 {[%emt 0:00:02]} Qh4+ {[%emt 0:00:02]} 50. Kg2 {[%emt 0:00:01]} Qe4+ {[%emt 0:00:40]} 51. Qxe4 {[%emt 0:00:18]} Rxe4 {[%emt 0:00:02]} 52. Ra8 {[%emt 0:00:03]} a4 {[%emt 0:00:15]} 53. Kf3 {[%emt 0:00:01]} Kg6 {[%emt 0:00:06]} 54. Ra7 {[%emt 0:00:05]} Kf6 {[%emt 0:00:02]} 55. Ke2 {[%emt 0:00:04]} h5 {[%emt 0:00:13]} 56. f3 {[%emt 0:00:01]} Rb4 {[%emt 0:00:03]} 57. f4 {[%emt 0:00:12]} h4 {[%emt 0:00:12]} 58. Kf2 {[%emt 0:00:03]} Rb2+ {[%emt 0:00:07]} 59. Kf3 {[%emt 0:00:03]} Ra2 {[%emt 0:00:13]} 0-1

[Event "RUS-chT Women Rapid 2019"]
[Site "Sochi"]
[Date "2019.10.18"]
[Round "3.7"]
[White "Vasilevich, Tatjana"]
[Black "Maltsevskaya, Aleksandra"]
[Result "1/2-1/2"]
[ECO "A57"]
[WhiteElo "2360"]
[BlackElo "2333"]
[Annotator "NA"]
[PlyCount "114"]
[EventDate "2019.10.18"]
[EventType "swiss"]
[EventCountry "RUS"]
[SourceTitle "playchess.com"]
[Source "ChessBase"]
[SourceQuality "1"]
[TimeControl "900+10"]

1. d4 {[%emt 0:00:00]} Nf6 {[%emt 0:00:00]} 2. c4 {[%emt 0:00:00]} c5 {[%emt 0:00:00]} 3. d5 {[%emt 0:00:00]} b5 {[%emt 0:00:00]} 4. Nf3 {[%emt 0:00:00]} bxc4 {[%emt 0:00:00]} 5. Nc3 {[%emt 0:00:00]} g6 {[%emt 0:00:01]} 6. e4 {[%emt 0:00:00]} Bg7 {[%emt 0:00:02]} 7. Bxc4 {[%emt 0:00:00]} O-O {[%emt 0:00:03]} 8. O-O {[%emt 0:00:06]} d6 {[%emt 0:00:09]} 9. Bg5 {[%emt 0:00:39]} h6 {[%emt 0:00:06]} 10. Bf4 {[%emt 0:00:10]} Nbd7 {[%emt 0:00:03]} 11. h3 {[%emt 0:00:09]} Qb6 {[%emt 0:00:22]} 12. Qe2 {[%emt 0:00:33]} Rb8 {[%emt 0:00:15]} 13. Rab1 {[%emt 0:00:29]} Nh5 {[%emt 0:00:15]} 14. Bd2 {[%emt 0:00:03]} Kh7 {[%emt 0:00:13]} 15. Na4 {[%emt 0:02:41]} Qc7 {[%emt 0:00:20]} 16. Rfc1 {[%emt 0:00:11]} Nb6 {[%emt 0:00:51]} 17. Nxb6 {[%emt 0:01:14]} axb6 {[%emt 0:00:03]} 18. Bc3 {[%emt 0:00:04]} Bd7 {[%emt 0:01:47]} 19. Bxg7 {[%emt 0:00:57]} Nxg7 {[%emt 0:00:15]} 20. b4 {[%emt 0:02:54]} b5 {[%emt 0:00:19]} 21. Bb3 {[%emt 0:00:09]} c4 {[%emt 0:00:07]} 22. Bd1 {[%emt 0:00:03]} Qa7 {[%emt 0:00:30]} 23. a4 {[%emt 0:00:22]} bxa4 {[%emt 0:00:10]} 24. Qd2 {[%emt 0:00:51]} Rfc8 {[%emt 0:01:26]} 25. Nd4 {[%emt 0:00:10]} c3 {[%emt 0:04:15]} 26. Rxc3 {[%emt 0:00:13]} Rxc3 {[%emt 0:00:02]} 27. Qxc3 {[%emt 0:00:01]} a3 {[%emt 0:01:24]} 28. Ra1 {[%emt 0:05:37]} Qb6 {[%emt 0:02:43]} 29. b5 {[%emt 0:00:20]} Bxb5 {[%emt 0:00:54]} 30. Rxa3 {[%emt 0:00:05]} Qc5 {[%emt 0:02:25]} 31. Nxb5 {[%emt 0:01:35]} Rxb5 {[%emt 0:00:06]} 32. Qxc5 {[%emt 0:00:23]} Rxc5 {[%emt 0:00:02]} 33. Kf1 {[%emt 0:00:13]} Rc4 {[%emt 0:00:15]} 34. Bf3 {[%emt 0:00:10]} Rc7 {[%emt 0:00:17]} 35. Ke2 {[%emt 0:00:05]} Ne8 {[%emt 0:00:00]} 36. Kd2 {[%emt 0:00:06]} Nf6 {[%emt 0:00:00]} 37. Rc3 {[%emt 0:00:02]} Ra7 {[%emt 0:00:00]} 38. g3 {[%emt 0:00:06]} Nd7 {[%emt 0:00:00]} 39. Be2 {[%emt 0:00:29]} Nc5 {[%emt 0:00:16]} 40. Ke3 {[%emt 0:00:03]} Ra4 {[%emt 0:00:34]} 41. Bd3 {[%emt 0:00:05]} Ra5 {[%emt 0:00:11]} 42. Bc2 {[%emt 0:00:11]} Kg7 {[%emt 0:00:03]} 43. h4 {[%emt 0:00:01]} Kf6 {[%emt 0:00:18]} 44. f4 {[%emt 0:00:06]} g5 {[%emt 0:00:33]} 45. hxg5+ {[%emt 0:00:21]} hxg5 {[%emt 0:00:01]} 46. Kf3 {[%emt 0:00:03]} e6 {[%emt 0:00:42]} 47. dxe6 {[%emt 0:00:09]} Nxe6 {[%emt 0:00:11]} 48. Ke3 {[%emt 0:00:09]} gxf4+ {[%emt 0:00:03]} 49. gxf4 {[%emt 0:00:01]} Rh5 {[%emt 0:00:02]} 50. Bd1 {[%emt 0:00:16]} Rh4 {[%emt 0:00:04]} 51. Rc6 {[%emt 0:00:13]} Rh3+ {[%emt 0:00:34]} 52. Kf2 {[%emt 0:00:08]} Rd3 {[%emt 0:00:10]} 53. Rxd6 {[%emt 0:00:24]} Rxd6 {[%emt 0:00:05]} 54. e5+ {[%emt 0:00:01]} Ke7 {[%emt 0:00:01]} 55. exd6+ {[%emt 0:00:01]} Kxd6 {[%emt 0:00:01]} 56. Bb3 {[%emt 0:00:05]} Nxf4 {[%emt 0:00:04]} 57. Bxf7 Ke5 1/2-1/2

[Event "RUS-chT Women Rapid 2019"]
[Site "Sochi"]
[Date "2019.10.18"]
[Round "3.8"]
[White "Obolentseva, Alexandra"]
[Black "Illina, Natalia"]
[Result "1/2-1/2"]
[ECO "E32"]
[WhiteElo "2282"]
[BlackElo "2081"]
[Annotator "NA"]
[PlyCount "113"]
[EventDate "2019.10.18"]
[EventType "swiss"]
[EventCountry "RUS"]
[SourceTitle "playchess.com"]
[Source "ChessBase"]
[SourceQuality "1"]
[TimeControl "900+10"]

1. d4 {[%emt 0:00:00]} Nf6 {[%emt 0:00:00]} 2. c4 {[%emt 0:00:00]} e6 {[%emt 0:00:00]} 3. Nc3 {[%emt 0:00:00]} Bb4 {[%emt 0:00:00]} 4. Qc2 {[%emt 0:00:01]} O-O {[%emt 0:00:00]} 5. a3 {[%emt 0:00:15]} Bxc3+ {[%emt 0:00:00]} 6. Qxc3 {[%emt 0:00:02]} d5 {[%emt 0:00:00]} 7. Nf3 {[%emt 0:00:10]} dxc4 {[%emt 0:00:25]} 8. Qxc4 {[%emt 0:00:12]} b6 {[%emt 0:00:01]} 9. Bf4 {[%emt 0:00:09]} Ba6 {[%emt 0:00:02]} 10. Qc2 {[%emt 0:00:21]} Qc8 {[%emt 0:00:57]} 11. g3 {[%emt 0:00:15]} c5 {[%emt 0:01:27]} 12. dxc5 {[%emt 0:00:09]} Qxc5 {[%emt 0:04:43]} 13. Qxc5 {[%emt 0:00:06]} bxc5 {[%emt 0:00:02]} 14. Rc1 {[%emt 0:00:30]} Nbd7 {[%emt 0:00:07]} 15. e3 {[%emt 0:00:39]} Bb7 {[%emt 0:00:25]} 16. Be2 {[%emt 0:00:04]} e5 {[%emt 0:00:30]} 17. Bg5 {[%emt 0:00:03]} Ne4 {[%emt 0:00:26]} 18. O-O {[%emt 0:01:31]} f6 {[%emt 0:01:10]} 19. Rfd1 {[%emt 0:01:07]} Nb6 {[%emt 0:00:42]} 20. Bh4 {[%emt 0:01:03]} g5 {[%emt 0:00:04]} 21. Bd3 {[%emt 0:00:36]} gxh4 {[%emt 0:02:28]} 22. Nxh4 {[%emt 0:00:02]} Rfd8 {[%emt 0:00:23]} 23. f3 {[%emt 0:00:50]} Ng5 {[%emt 0:00:13]} 24. Be2 {[%emt 0:03:14]} e4 {[%emt 0:01:29]} 25. f4 {[%emt 0:00:14]} Nf3+ {[%emt 0:00:02]} 26. Bxf3 {[%emt 0:02:49]} exf3 {[%emt 0:00:01]} 27. Kf2 {[%emt 0:00:01]} Be4 {[%emt 0:00:33]} 28. Rxd8+ {[%emt 0:01:01]} Rxd8 {[%emt 0:00:02]} 29. Nxf3 {[%emt 0:00:02]} Bxf3 {[%emt 0:01:43]} 30. Kxf3 {[%emt 0:00:02]} c4 {[%emt 0:00:01]} 31. Ke2 {[%emt 0:00:07]} Kf7 {[%emt 0:00:25]} 32. Rc3 {[%emt 0:00:20]} f5 {[%emt 0:01:00]} 33. b3 {[%emt 0:00:25]} cxb3 {[%emt 0:00:38]} 34. Rxb3 {[%emt 0:00:01]} Rd5 {[%emt 0:00:08]} 35. Rc3 {[%emt 0:00:08]} Ra5 {[%emt 0:00:16]} 36. Kf3 {[%emt 0:00:04]} Ke6 {[%emt 0:00:18]} 37. e4 {[%emt 0:00:41]} fxe4+ {[%emt 0:00:03]} 38. Kxe4 {[%emt 0:00:02]} Ra4+ {[%emt 0:00:04]} 39. Kf3 {[%emt 0:00:05]} h5 {[%emt 0:00:16]} 40. Re3+ {[%emt 0:00:18]} Kf6 {[%emt 0:00:17]} 41. Kf2 {[%emt 0:01:02]} a5 {[%emt 0:00:12]} 42. h3 {[%emt 0:00:13]} h4 {[%emt 0:00:09]} 43. gxh4 {[%emt 0:00:07]} Rxf4+ {[%emt 0:00:03]} 44. Kg3 {[%emt 0:00:03]} Ra4 {[%emt 0:00:13]} 45. Kf2 {[%emt 0:00:28]} Rxh4 {[%emt 0:00:04]} 46. Rb3 {[%emt 0:00:01]} Nc4 {[%emt 0:00:10]} 47. Ke2 {[%emt 0:00:58]} Ke5 {[%emt 0:00:19]} 48. Kd3 {[%emt 0:00:09]} Nd6 {[%emt 0:00:10]} 49. Kc2 {[%emt 0:00:03]} Kd5 {[%emt 0:00:11]} 50. Rd3+ {[%emt 0:00:10]} Kc5 {[%emt 0:00:05]} 51. Rg3 {[%emt 0:00:15]} Kb5 {[%emt 0:00:10]} 52. Kb2 {[%emt 0:00:28]} Nc4+ {[%emt 0:00:16]} 53. Kb3 {[%emt 0:00:30]} Nd2+ {[%emt 0:00:09]} 54. Kc2 {[%emt 0:00:04]} Ne4 {[%emt 0:00:04]} 55. Rg4 {[%emt 0:00:30]} Rxh3 {[%emt 0:00:19]} 56. Rxe4 {[%emt 0:00:03]} Rxa3 {[%emt 0:00:04]} 57. Kb2 {[%emt 0:00:01]} 1/2-1/2

[Event "RUS-chT Women Rapid 2019"]
[Site "Sochi"]
[Date "2019.10.18"]
[Round "3.9"]
[White "Badelka, Olga"]
[Black "Ambartsumova, Karina"]
[Result "1/2-1/2"]
[ECO "D35"]
[WhiteElo "2413"]
[BlackElo "2341"]
[Annotator "NA"]
[PlyCount "111"]
[EventDate "2019.10.18"]
[EventType "swiss"]
[EventCountry "RUS"]
[SourceTitle "playchess.com"]
[Source "ChessBase"]
[SourceQuality "1"]
[TimeControl "900+10"]

1. d4 {[%emt 0:00:00]} d5 {[%emt 0:00:00]} 2. c4 {[%emt 0:00:00]} e6 {[%emt 0:00:00]} 3. Nc3 {[%emt 0:00:00]} Nf6 {[%emt 0:00:00]} 4. cxd5 {[%emt 0:00:06]} exd5 {[%emt 0:00:00]} 5. Bg5 {[%emt 0:00:01]} c6 {[%emt 0:00:00]} 6. e3 {[%emt 0:00:01]} Be7 {[%emt 0:00:01]} 7. Qc2 {[%emt 0:00:05]} Nbd7 {[%emt 0:00:09]} 8. Bd3 {[%emt 0:00:04]} h6 {[%emt 0:00:02]} 9. Bh4 {[%emt 0:00:12]} Nh5 {[%emt 0:00:03]} 10. Bxe7 {[%emt 0:00:02]} Qxe7 {[%emt 0:00:01]} 11. O-O-O {[%emt 0:01:34]} Nb6 {[%emt 0:00:07]} 12. h3 {[%emt 0:00:11]} Nf6 {[%emt 0:00:12]} 13. Nf3 {[%emt 0:00:03]} Be6 {[%emt 0:00:17]} 14. Kb1 {[%emt 0:00:14]} O-O-O {[%emt 0:00:23]} 15. Rc1 {[%emt 0:00:21]} Kb8 {[%emt 0:00:51]} 16. Na4 {[%emt 0:00:25]} Nfd7 {[%emt 0:03:59]} 17. Nc5 Nxc5 {[%emt 0:03:15]} 18. Qxc5 {[%emt 0:01:42]} Qxc5 {[%emt 0:01:35]} 19. dxc5 {[%emt 0:00:11]} Nd7 {[%emt 0:00:01]} 20. Nd4 {[%emt 0:00:27]} Ne5 {[%emt 0:00:29]} 21. Be2 {[%emt 0:00:08]} Bd7 {[%emt 0:00:16]} 22. f4 {[%emt 0:03:51]} Ng6 {[%emt 0:00:04]} 23. Bd3 {[%emt 0:02:30]} Rhe8 {[%emt 0:00:46]} 24. Bxg6 {[%emt 0:00:02]} fxg6 {[%emt 0:00:01]} 25. Rc3 {[%emt 0:00:11]} Bf5+ {[%emt 0:01:13]} 26. Kc1 {[%emt 0:00:01]} Be4 {[%emt 0:00:53]} 27. Rg1 {[%emt 0:00:01]} Re7 {[%emt 0:00:53]} 28. Kd2 {[%emt 0:00:07]} Rf8 {[%emt 0:00:14]} 29. Rcc1 {[%emt 0:03:22]} g5 {[%emt 0:00:20]} 30. g3 {[%emt 0:00:10]} Kc8 {[%emt 0:01:10]} 31. h4 {[%emt 0:00:19]} Kd7 {[%emt 0:01:16]} 32. b4 {[%emt 0:00:37]} a6 {[%emt 0:00:24]} 33. a4 Ref7 {[%emt 0:00:48]} 34. Ra1 {[%emt 0:00:35]} Ra8 {[%emt 0:00:15]} 35. Rgf1 {[%emt 0:01:12]} gxf4 {[%emt 0:00:04]} 36. gxf4 {[%emt 0:00:03]} Rff8 {[%emt 0:00:41]} 37. Rg1 Rf7 38. Kc3 {[%emt 0:01:04]} g6 {[%emt 0:00:16]} 39. Ra2 {[%emt 0:00:13]} Re7 {[%emt 0:00:11]} 40. Rh2 {[%emt 0:00:17]} h5 {[%emt 0:00:16]} 41. Ra2 {[%emt 0:00:14]} Ke8 {[%emt 0:00:09]} 42. Rga1 {[%emt 0:00:09]} Kd7 {[%emt 0:00:11]} 43. b5 {[%emt 0:00:40]} axb5 {[%emt 0:00:07]} 44. axb5 {[%emt 0:00:01]} Rxa2 {[%emt 0:00:02]} 45. Rxa2 {[%emt 0:00:01]} cxb5 {[%emt 0:00:02]} 46. Ra7 {[%emt 0:00:14]} Kc7 {[%emt 0:00:27]} 47. c6 {[%emt 0:00:37]} Kb6 {[%emt 0:00:01]} 48. Rxb7+ {[%emt 0:00:12]} Rxb7 {[%emt 0:00:02]} 49. cxb7 {[%emt 0:00:01]} Kxb7 {[%emt 0:00:04]} 50. Nxb5 {[%emt 0:00:04]} Kc6 {[%emt 0:00:02]} 51. Kb4 {[%emt 0:00:17]} Bd3 {[%emt 0:00:12]} 52. Nd4+ {[%emt 0:00:04]} Kd6 {[%emt 0:00:04]} 53. Nf3 {[%emt 0:00:36]} Ke6 {[%emt 0:00:09]} 54. Kc3 {[%emt 0:00:10]} Be4 {[%emt 0:00:30]} 55. Nd4+ {[%emt 0:00:12]} Kd6 {[%emt 0:00:04]} 56. Kb4 {[%emt 0:00:05] Ke5} 1/2-1/2

[Event "RUS-chT Women Rapid 2019"]
[Site "Sochi"]
[Date "2019.10.18"]
[Round "3.10"]
[White "Shafigullina, Zarina"]
[Black "Sukhareva, Evgeniya"]
[Result "1-0"]
[ECO "A46"]
[WhiteElo "2295"]
[BlackElo "2122"]
[Annotator "NA"]
[PlyCount "129"]
[EventDate "2019.10.18"]
[EventType "swiss"]
[EventCountry "RUS"]
[SourceTitle "playchess.com"]
[Source "ChessBase"]
[SourceQuality "1"]
[TimeControl "900+10"]

1. d4 {[%emt 0:00:00]} Nf6 {[%emt 0:00:00]} 2. Nf3 {[%emt 0:00:00]} e6 {[%emt 0:00:00]} 3. g3 {[%emt 0:00:00]} b6 {[%emt 0:00:11]} 4. Bg2 {[%emt 0:00:00]} Bb7 {[%emt 0:00:01]} 5. O-O {[%emt 0:00:04]} g6 {[%emt 0:00:16]} 6. c4 {[%emt 0:00:04]} Bg7 {[%emt 0:00:08]} 7. Nc3 {[%emt 0:00:23]} Ne4 {[%emt 0:00:10]} 8. Bd2 {[%emt 0:00:05]} Nxc3 {[%emt 0:00:40]} 9. Bxc3 {[%emt 0:00:02]} d6 {[%emt 0:00:08]} 10. Re1 {[%emt 0:00:09]} Nd7 {[%emt 0:00:30]} 11. e4 {[%emt 0:00:12]} O-O {[%emt 0:00:18]} 12. Qc2 {[%emt 0:00:08]} e5 {[%emt 0:01:52]} 13. b3 {[%emt 0:01:05]} Qe7 {[%emt 0:00:43]} 14. Rad1 {[%emt 0:00:20]} c5 {[%emt 0:02:55]} 15. dxe5 {[%emt 0:00:27]} dxe5 {[%emt 0:00:20]} 16. Qb2 f6 {[%emt 0:00:35]} 17. Nd2 {[%emt 0:00:42]} Nb8 {[%emt 0:00:24]} 18. Nf1 {[%emt 0:05:40]} Bh6 {[%emt 0:01:29]} 19. Bh3 {[%emt 0:02:34]} Bc8 {[%emt 0:02:40]} 20. Bxc8 {[%emt 0:01:55]} Rxc8 {[%emt 0:00:02]} 21. f4 {[%emt 0:01:28]} exf4 {[%emt 0:04:10]} 22. Bxf6 {[%emt 0:00:04]} Qe6 {[%emt 0:00:04]} 23. e5 {[%emt 0:00:39]} fxg3 {[%emt 0:00:38]} 24. Nxg3 {[%emt 0:00:13]} Nc6 {[%emt 0:00:30]} 25. Rd6 {[%emt 0:00:10]} Qg4 {[%emt 0:00:04]} 26. e6 {[%emt 0:01:43]} Qf3 {[%emt 0:00:05]} 27. Qf2 {[%emt 0:00:47]} Qxf2+ {[%emt 0:00:02]} 28. Kxf2 {[%emt 0:00:00]} Rf8 {[%emt 0:00:00]} 29. e7 {[%emt 0:00:08]} Nxe7 {[%emt 0:00:31]} 30. Rxe7 {[%emt 0:00:02]} Rae8 {[%emt 0:00:21]} 31. Rxe8 {[%emt 0:00:17]} Rxe8 {[%emt 0:00:01]} 32. Rd8 {[%emt 0:00:02]} Rxd8 {[%emt 0:00:17]} 33. Bxd8 {[%emt 0:00:01]} Bf4 {[%emt 0:00:02]} 34. h3 {[%emt 0:00:08]} Kf7 {[%emt 0:00:04]} 35. Kf3 {[%emt 0:00:06]} Be5 {[%emt 0:00:06]} 36. Ne4 {[%emt 0:00:19]} h6 {[%emt 0:00:03]} 37. Bh4 {[%emt 0:00:03]} Ke6 {[%emt 0:00:36]} 38. Bg3 {[%emt 0:00:18]} Bd4 {[%emt 0:00:09]} 39. Bb8 {[%emt 0:00:06]} Kd7 {[%emt 0:00:01]} 40. Kf4 {[%emt 0:00:21]} Bg1 {[%emt 0:00:18]} 41. Kg4 {[%emt 0:00:40]} Bd4 {[%emt 0:00:05]} 42. Bf4 {[%emt 0:00:03]} Bg7 {[%emt 0:00:08]} 43. Bd2 {[%emt 0:00:20]} Bd4 {[%emt 0:00:13]} 44. Bxh6 {[%emt 0:00:10]} Ke6 {[%emt 0:00:05]} 45. Bf4 {[%emt 0:00:04]} a6 {[%emt 0:00:22]} 46. Kg5 {[%emt 0:00:21]} Kf7 {[%emt 0:00:02]} 47. Nd6+ {[%emt 0:00:09]} Kg7 {[%emt 0:00:07]} 48. Ne8+ {[%emt 0:00:10]} Kf7 {[%emt 0:00:03]} 49. Nc7 {[%emt 0:00:04]} Bf6+ {[%emt 0:00:27]} 50. Kg4 {[%emt 0:00:07]} a5 {[%emt 0:00:11]} 51. Nd5 {[%emt 0:00:03]} Bd4 {[%emt 0:00:08]} 52. Nxb6 {[%emt 0:00:03]} Ke6 {[%emt 0:00:06]} 53. Nd5 {[%emt 0:00:05]} Bf2 {[%emt 0:00:11]} 54. Bc7 {[%emt 0:00:12]} Be1 {[%emt 0:00:09]} 55. Kg5 {[%emt 0:00:08]} Kf7 {[%emt 0:00:08]} 56. Bb6 {[%emt 0:00:11]} Bd2+ {[%emt 0:00:14]} 57. Kg4 {[%emt 0:00:02]} Ke6 {[%emt 0:00:10]} 58. Bxc5 {[%emt 0:00:04]} Ke5 {[%emt 0:00:02]} 59. Be3 {[%emt 0:00:07]} Be1 {[%emt 0:00:11]} 60. Kg5 {[%emt 0:00:27]} Ke4 {[%emt 0:00:16]} 61. Kxg6 {[%emt 0:00:01]} Kd3 {[%emt 0:00:15]} 62. Kf5 {[%emt 0:00:23]} Kc2 {[%emt 0:00:02]} 63. c5 {[%emt 0:00:10]} Bh4 {[%emt 0:00:15]} 64. c6 {[%emt 0:00:08]} Bd8 {[%emt 0:00:09]} 65. Bb6 {[%emt 0:00:02]} 1-0

[Event "RUS-chT Women Rapid 2019"]
[Site "Sochi"]
[Date "2019.10.18"]
[Round "3.11"]
[White "Chan, Naruna"]
[Black "Yakimova, Mariya"]
[Result "0-1"]
[ECO "B22"]
[WhiteElo "1890"]
[BlackElo "2276"]
[Annotator "NA"]
[PlyCount "82"]
[EventDate "2019.10.18"]
[EventType "swiss"]
[EventCountry "RUS"]
[SourceTitle "playchess.com"]
[Source "ChessBase"]
[SourceQuality "1"]
[TimeControl "900+10"]

1. e4 {[%emt 0:00:00]} c5 {[%emt 0:00:00]} 2. c3 {[%emt 0:00:00]} d5 {[%emt 0:00:00]} 3. exd5 {[%emt 0:00:00]} Qxd5 {[%emt 0:00:00]} 4. d4 {[%emt 0:00:00]} Nc6 {[%emt 0:00:00]} 5. Nf3 {[%emt 0:00:00]} Bf5 {[%emt 0:00:00]} 6. Be3 {[%emt 0:00:00]} e6 {[%emt 0:00:00]} 7. c4 {[%emt 0:00:23]} Qd8 {[%emt 0:00:06]} 8. Nc3 {[%emt 0:00:20]} cxd4 {[%emt 0:02:55]} 9. Nxd4 {[%emt 0:00:12]} Nxd4 {[%emt 0:00:05]} 10. Qxd4 {[%emt 0:01:37]} Qxd4 {[%emt 0:01:05]} 11. Bxd4 {[%emt 0:00:02]} Nf6 {[%emt 0:00:02]} 12. Be2 {[%emt 0:01:01]} a6 {[%emt 0:01:46]} 13. O-O {[%emt 0:03:16]} Be7 {[%emt 0:00:56]} 14. Bf3 {[%emt 0:00:22]} O-O-O {[%emt 0:01:00]} 15. Rfd1 {[%emt 0:00:23]} Rhg8 {[%emt 0:02:27]} 16. h3 {[%emt 0:00:10]} Nd7 {[%emt 0:00:27]} 17. Rac1 {[%emt 0:01:04]} Bg5 {[%emt 0:00:42]} 18. Ra1 {[%emt 0:03:27]} Bc2 {[%emt 0:02:35]} 19. Re1 {[%emt 0:01:01]} Nb8 {[%emt 0:00:36]} 20. Bb6 {[%emt 0:01:51]} Rd2 {[%emt 0:01:02]} 21. Re2 {[%emt 0:01:27]} Nd7 {[%emt 0:01:33]} 22. Be3 {[%emt 0:00:15]} Rxe2 {[%emt 0:00:11]} 23. Bxe2 {[%emt 0:00:05]} Bxe3 {[%emt 0:00:01]} 24. fxe3 {[%emt 0:00:01]} Ne5 {[%emt 0:00:05]} 25. Rc1 {[%emt 0:00:22]} Bf5 {[%emt 0:00:16]} 26. e4 {[%emt 0:00:24]} Bg6 {[%emt 0:00:01]} 27. Rd1 {[%emt 0:00:15]} Kc7 {[%emt 0:00:21]} 28. Kf2 {[%emt 0:00:07]} f6 {[%emt 0:00:36]} 29. Ke3 {[%emt 0:00:13]} Rc8 {[%emt 0:00:31]} 30. Na4 {[%emt 0:00:35]} Kc6 {[%emt 0:00:23]} 31. c5 {[%emt 0:00:09]} Nf7 {[%emt 0:00:08]} 32. b4 {[%emt 0:00:11]} Rd8 {[%emt 0:00:09]} 33. Rxd8 {[%emt 0:00:20]} Nxd8 {[%emt 0:00:01]} 34. Nb6 {[%emt 0:00:20]} Bf7 {[%emt 0:00:23]} 35. Bc4 {[%emt 0:00:30]} Kc7 {[%emt 0:00:09]} 36. a3 {[%emt 0:00:17]} Kc6 {[%emt 0:00:06]} 37. Bb3 {[%emt 0:00:09]} e5 {[%emt 0:00:12]} 38. Bd5+ {[%emt 0:00:04]} Kc7 {[%emt 0:00:14]} 39. Nc4 {[%emt 0:00:06]} Be8 {[%emt 0:00:09]} 40. Nd6 {[%emt 0:00:05]} Ba4 {[%emt 0:00:04]} 41. Ne8+ {[%emt 0:00:03]} Bxe8 {[%emt 0:00:03] Kd4} 0-1